{"text_format":"1","workbook":"xlsx","n_sheets":1,"sheets":["conceptos"],"not_rendered":{"charts":0,"images":2,"macros":1,"external_links":0,"defined_names":1,"comments":0,"pivot_tables":0},"unopened":[],"bounds":{"document_bytes":16777216,"sheet_cells":100000,"rows_first":2000,"rows_last":500,"rows_between":2000,"halvings":0,"cell_chars":16384,"cell_head_chars":4096},"cells_cut":0,"cells_raw":0,"read":"whole","date_system":"1900"}

{"sheet":"conceptos","index":0,"n_rows":146,"n_cols":8,"rows_kept":146,"cut":false,"hidden":false,"merged":[[143,0,143,4],[144,0,145,4],[13,0,13,6],[0,2,0,5],[9,2,9,5],[1,2,3,5],[4,2,4,3],[6,2,6,3],[7,2,7,3],[4,4,4,5],[5,4,5,5],[6,4,6,5],[7,4,7,5],[10,2,10,5],[11,2,11,5],[5,1,8,1]]}
[null,"GOBIERNO DEL ESTADO DE JALISCO","LICITACIÓN PÚBLICA ESTATAL"]
[null,"INSTITUTO DE LA INFRAESTRUCTURA FÍSICA EDUCATIVA DEL","E-REM-B-REH-05869-LP-0164-2020"]
[null,"ESTADO DE JALISCO"]
[]
[null,"DESCRIPCIÓN GENERAL DE LOS TRABAJOS:","FECHA DE INICIO:"]
[null,null,null,"FECHA DE TERMINACIÓN:"]
[null,null,"PLAZO DE EJECUCIÓN:"]
[null,null,"FECHA:"]
[]
[null,"RAZÓN SOCIAL DEL LICITANTE:","NOMBRE, CARGO Y FIRMA DEL LICITANTE:",null,null,null,"DOCUMENTO"]
[]
[]
[]
["PRESUPUESTO DE OBRA"]
[]
["CLAVE","DESCRIPCIÓN","UNIDAD","CANTIDAD","PRECIO UNITARIO ($)","PRECIO UNITARIO ($) CON LETRA","IMPORTE ($) M.N."]
["TRABAJO : BAS-REH-05869","CONSTRUCCIÓN DE CASETA PARA HIDRONEUMÁTICO E INSTALACIONES DE OBRA EXTERIOR EN EL JARDÍN DE NIÑOS JOSÉ GONZÁLEZ TORRES CCT 14EJN1061C, UBICADO EN LA LOCALIDAD PASEO DE LA CAÑADA, MUNICIPIO DE TONALÁ, JALISCO.",null,null,null,null,{"$f":"TEXT(SUM(G18 + G25 + G94 + G105 + G110 + G113), \"$ #,##0.00 ;\")","v":"$ 0.00 "}]
["SAN","SANITARIOS",null,null,null,null,{"$f":"TEXT((G19), \"$ #,##0.00 ;\")","v":"$ 0.00 "}]
["SAN.01(396)","LIMPIEZA                                          ",null,null,null,null,{"$f":"TEXT(SUM(G20:G24), \"$ #,##0.00 ;\")","v":"$ 0.00 "}]
[396012,"LIMPIEZA DE PISOS DE CONCRETO CON AGUA Y ACIDO MURIATICO AL 10%.","M2 ","19.4400",0,"CERO PESOS 00/100 M.N.",0,297504]
[396022,"LIMPIEZA EN PISO DE CERAMICA, CON AGUA Y JABON.","M2 ","73.6700",0,"CERO PESOS 00/100 M.N.",0,297505]
[396032,"LIMPIEZA DE RECUBRIMIENTOS VIDRIADOS EN MUROS, CON JABON, AGUA Y ACIDO MURIATICO AL 10 %.","M2 ","99.0600",0,"CERO PESOS 00/100 M.N.",0,297506]
[396042,"LIMPIEZA DE VIDRIOS CON AGUA Y JABON, 2 CARAS.","M2 ","12.6300",0,"CERO PESOS 00/100 M.N.",0,297507]
[396222,"LIMPIEZA DE MUEBLES DE BAÑO, CON AGUA Y JABON.","PZA","21.0000",0,"CERO PESOS 00/100 M.N.",0,297508]
[15,"CUARTO DE MAQUINAS",null,null,null,null,{"$f":"TEXT(SUM(G26 + G33 + G41 + G45 + G51 + G57 + G61 + G64 + G66 + G71 + G73 + G77 + G86), \"$ #,##0.00 ;\")","v":"$ 0.00 "}]
["15.01(150)","TRABAJOS PRELIMINARES                             ",null,null,null,null,{"$f":"TEXT(SUM(G27:G32), \"$ #,##0.00 ;\")","v":"$ 0.00 "}]
[150020,"LIMPIEZA DE TERRENO RETIRANDO BASURA Y DESHIERBE FUERA DE LA OBRA. INCLUYE: HERRAMIENTAS, MANO DE OBRA, RECOLECCION, JUNTA Y RETIRO. (PROYECCION DE CUBIERTA).","M2 ","6.3000",0,"CERO PESOS 00/100 M.N.",0,297509]
[150110,"TRAZO Y NIVELACION DE EDIFICIOS ESTABLECIENDO REFERENCIAS DEFINITIVAS, CON TRANSITO Y NIVEL (EQUIPO TOPOGRAFICO), INCLUYE: PERSONAL TECNICO CALIFICADO, ESTACAS, MOJONERAS, LOCALIZACION DE ENTRE EJES, BANCOS DE NIVEL, MATERIALES PARA SEÑALAMIENTO, EQUIPO, HERRAMIENTA Y MANO DE OBRA.","M2 ","6.3000",0,"CERO PESOS 00/100 M.N.",0,297510]
[150210,"DESPALME DE TERRENO NATURAL POR CUALQUIER MEDIO, CON ESPESOR PROMEDIO DE 20 CM. INCLUYE: CARGA Y ACARREO DEL PRODUCTO FUERA DE LA OBRA, MANO DE OBRA, HERRAMIENTA Y EQUIPO. (PROYECCION DE CUBIERTA).","M2 ","6.3000",0,"CERO PESOS 00/100 M.N.",0,297511]
[152204,"EXCAVACION EN CEPAS POR CUALQUIER MEDIO, MATERIAL TIPO \"B\", DE 0 A 2.00 M. DE PROFUNDIDAD, EN SECO, INCLUYE: AFINE DE TALUDES Y FONDO, TRASPALEOS,  MOVIMIENTOS Y ACARREOS DENTRO DE LA OBRA, HERRAMIENTAS Y MANO DE OBRA, MEDIDO EN BANCO.","M3 ","0.8200",0,"CERO PESOS 00/100 M.N.",0,297512]
[152404,"EXCAVACION A CIELO ABIERTO EN CAJON POR CUALQUIER MEDIO, MATERIAL TIPO \"B\", DE 0 A 2.00 M. DE PROFUNDIDAD, EN SECO, INCLUYE: AFINE DE TALUDES Y FONDO, TRAPALEOS,  MOVIMIENTOS Y ACARREOS DENTRO DE LA OBRA, HERRAMIENTAS Y MANO DE OBRA, MEDIDO EN BANCO.","M3 ","1.2600",0,"CERO PESOS 00/100 M.N.",0,297513]
[156002,"CARGA POR CUALQUIER MEDIO Y ACARREO EN CAMION DE MATERIAL DE DESPERDICIO PRODUCTO DE LAS EXCAVACIONES FUERA DE LA OBRA, A LUGAR PERMITIDO POR LAS AUTORIDADES CORRESPONDIENTES, MEDIDO EN BANCO. INCLUYE CARGA,  ACARREO Y DESCARGA A TIRO LIBRE, HERRAMIENTA, EQUIPO, MATERIALES DE CONSUMO Y MANO DE OBRA.","M3 ","1.7600",0,"CERO PESOS 00/100 M.N.",0,297514]
["15.02(160)","CIMENTACION                                       ",null,null,null,null,{"$f":"TEXT(SUM(G34:G40), \"$ #,##0.00 ;\")","v":"$ 0.00 "}]
[162002,"CIMIENTO DE PIEDRA BRAZA ACOMODADA PIEDRA POR PIEDRA, ASENTADA CON MORTERO CEMENTO-ARENA  EN PROPORCION 1:3. INCLUYE: MATERIALES, DESPERDICIOS, HERRAMIENTAS, LIMPIEZA, MANO DE OBRA Y ACARREO DE MATERIALES AL SITIO DE SU UTILIZACION.","M3 ","1.5000",0,"CERO PESOS 00/100 M.N.",0,297515]
[162404,"NIVELACION DE MURO DE MAMPOSTERIA CON RAJUELA DE PIEDRA BRAZA JUNTEADA CON MORTERO CEM-ARE 1:3. DE 0.10 M. DE ESPESOR X 0.40 M. DE ANCHO PROMEDIO. INCLUYE: NIVELACION, TRAZO, MANO DE OBRA Y HERRAMIENTA. (NO INCLUYE MATERIALES)","ML ","6.2500",0,"CERO PESOS 00/100 M.N.",0,297516]
[167220,"DALA DE DESPLANTE DE CONCRETO F´C= 150 KG/CM2, T.M.A.= 3/4\", CON SECCION DE 14 X 25 CM., ARMADA CON 4 VARILLAS DEL #3 Y ESTRIBOS DEL #2 @ 20 CM., INCLUYE: ARMADO, COLADO, CURADO, VIBRADO, CIMBRA COMUN, DESCIMBRA, DESPERDICIOS, TRASLAPES, CRUCES DE VARILLAS CON ELEMENTOS TRANSVERSALES, ANDAMIOS, MANO DE OBRA, HERRAMIENTA Y ACARREO DE MATERIALES AL SITIO DE SU UTILIZACION, A CUALQUIER ALTURA.","ML ","5.9900",0,"CERO PESOS 00/100 M.N.",0,297517]
[167514,"DALA DE CONCRETO EN REMATE DE CIMENTACION, F'C=250 KG/CM2, T.M.A.=3/4\", CON SECCION DE 40 X 15 CMS., ARMADA CON 4 VARILLAS DEL # 4 Y ESTRIBOS DEL # 3 @ 20 CMS., INCLUYE: ARMADO, COLADO, CURADO, VIBRADO, CIMBRA COMUN, DESCIMBRA, DESPERDICIOS, MANO DE OBRA, HERRAMIENTA Y ACARREO DE MATERIALES AL SITIO DE SU UTILIZACION.","ML ","2.9900",0,"CERO PESOS 00/100 M.N.",0,297518]
[180002,"RELLENO EN CEPAS POR CUALQUIER MEDIO, CON MATERIAL PRODUCTO DE EXCAVACION, COMPACTADO AL 90% PROCTOR, EN CAPAS DE 20 CM, MEDIDO COMPACTO. INCLUYE: SUMINISTRO DE AGUA PARA LOGRAR HUMEDAD OPTIMA, TENDIDO, TRASPALEOS,  EQUIPO, PRUEBAS DE COMPACTACION, AFINE, NIVELACION, HERRAMIENTAS, MANO DE OBRA Y  ACARREO HASTA EL SITIO DE SU COLOCACION. (MEDIDO EN BANCO).","M3 ","0.3200",0,"CERO PESOS 00/100 M.N.",0,297519]
[180102,"RELLENO COMPACTADO AL 90 % PROCTOR, CON MATERIAL DE BANCO, EN CAPAS DE 20 CM DE ESPESOR, AGREGANDO AGUA PARA LOGRAR SU HUMEDAD OPTIMA, AL 90%. POR CUALQUIER MEDIO, INCLUYE: SUMINISTRO DE AGUA PARA LOGRAR HUMEDAD OPTIMA, TENDIDO, TRASPALEOS,  DESPERDICIOS, EQUIPO, PRUEBAS DE COMPACTACION, AFINE, NIVELACION, HERRAMIENTAS, MANO DE OBRA Y  ACARREO HASTA EL SITIO DE SU COLOCACION.  (VOLUMEN MEDIDO COMPACTADO).","M3 ","3.4700",0,"CERO PESOS 00/100 M.N.",0,297520]
[192862,"BASE PARA CASTILLO DE 40 X 40 X 40 CM, EN CIMENTACION DE PIEDRA, CON CONCRETO F'C=150 KG/CM2, TMA=3/4\", CON 4 VARILLAS DE 3/8\" DE DIAMETRO Y ESTRIBOS DE 1/4\" @ 20.0 CM. CIMBRA COMUN,  INCLUYE: CIMBRADO Y DESCIMBRADO, COLADO, VIBRADO, CURADO, MATERIALES, DESPERDICIOS, HERRAMIENTAS, LIMPIEZA, MANO DE OBRA Y ACARREO DE MATERIALES AL SITIO DE SU UTILIZACION.","PZA","4.0000",0,"CERO PESOS 00/100 M.N.",0,297521]
["15.03(200)","ESTRUCTURA                                        ",null,null,null,null,{"$f":"TEXT(SUM(G42:G44), \"$ #,##0.00 ;\")","v":"$ 0.00 "}]
[210322,"CIMBRA DE MADERA, ACABADO APARENTE, EN LOSAS, INCLUYE: HABILITADO, CHAFLANES, CIMBRA, DESCIMBRA, GOTEROS, HERRAMIENTAS, LIMPIEZAS, MANO DE OBRA  Y ACARREO DE MATERIALES AL SITIO DE SU UTILIZACION, A CUALQUIER NIVEL.","M2 ","7.5200",0,"CERO PESOS 00/100 M.N.",0,297522]
[213003,"SUMINISTRO, HABILITADO, ARMADO Y COLOCACION DE ACERO DE REFUERZO FY=4,200 KG/CM2 (G.E.), DE 3/8\" (# 3 ), EN ESTRUCTURA, INCLUYE: MATERIALES, HABILITADO,  DOBLECES,  SILLETAS, ALAMBRE, GANCHOS, ESCUADRAS, TRASLAPES, DESPERDICIOS HERRAMIENTAS, MANO DE OBRA Y ACARREO DE MATERIALES AL SITIO DE SU COLOCACION.","KG ","51.2700",0,"CERO PESOS 00/100 M.N.",0,297523]
[216942,"SUMINISTRO Y COLOCACION DE CONCRETO PREMEZCLADO BOMB, F'C=250 KG/CM2, T.M.A.= 3/4, R.N., EN LOSAS, INCLUYE: MATERIALES, FLETES, MANIOBRAS, BOMBEO, CURADO CON CURACRETO ROJO, VIBRADO, AFINE Y ACABADO REGLEADO,  DESPERDICIO, PRUEBAS DE RESISTENCIA Y MANO DE OBRA, A CUALQUIER NIVEL.","M3 ","0.7600",0,"CERO PESOS 00/100 M.N.",0,297524]
["15.04(310)","MUROS, CADENAS, CASTILLOS Y REPIZONES.            ",null,null,null,null,{"$f":"TEXT(SUM(G46:G50), \"$ #,##0.00 ;\")","v":"$ 0.00 "}]
[310212,"DALA DE CONCRETO F'C=150 KG/CM2, T.M.A.=3/4\", CON SECCION DE 14 X 20 CMS., ARMADA CON 4 VARILLAS DEL # 3 Y ESTRIBOS DEL NO. 2 @ 20 CMS., INCLUYE:  ARMADO, COLADO, CURADO, VIBRADO, CIMBRA COMUN, DESCIMBRA, TRASLAPES, CRUCES DE VARILLAS CON ELEMENTOS TRANSVERSALES, DESPERDICIOS, MANO DE OBRA, HERRAMIENTA Y ACARREO DE MATERIALES AL SITIO DE SU UTILIZACION, A CUALQUIER ALTURA.","ML ","8.7200",0,"CERO PESOS 00/100 M.N.",0,297525]
[310538,"DALA DE CONCRETO F'C=250 KG/CM2, T.M.A.=3/4\", CON SECCION DE 14 X 10 CMS., SIN ARMAR, INCLUYE: COLADO, CURADO, VIBRADO, CIMBRA APARENTE, DESCIMBRA, DESPERDICIOS, MANO DE OBRA, HERRAMIENTA Y ACARREO DE MATERIALES AL SITIO DE SU UTILIZACION, A CUALQUIER ALTURA.","ML ","6.7200",0,"CERO PESOS 00/100 M.N.",0,297526]
[312220,"CASTILLO DE CONCRETO F'C=250 KG/CM2, T.M.A.=3/4\", CON SECCION DE 14 X 15 CMS., ARMADA CON 4 VARILLAS DEL # 3 Y ESTRIBOS DEL NO. 2 @ 20 CMS., INCLUYE: ARMADO, COLADO, CURADO, VIBRADO, CIMBRA COMUN, DESCIMBRA, DESPERDICIOS, TRASLAPES, CRUCES DE VARILLAS CON ELEMENTOS TRANSVERSALES, ANDAMIOS, MANO DE OBRA, HERRAMIENTA Y ACARREO DE MATERIALES AL SITIO DE SU UTILIZACION, A CUALQUIER ALTURA.","ML ","9.6000",0,"CERO PESOS 00/100 M.N.",0,297527]
[314032,"MURO DE TABIQUE DE LAMA, DE 14 CMS. DE ESPESOR PROMEDIO, A SOGA, CON TABIQUE DE LAMA 7 X 14 X 28 CMS., ACABADO COMUN, ASENTADO CON MORTERO CEMENTO-ARENA EN PROPORCION 1:3, EN CUALQUIER NIVEL, INCLUYE: TRAZO, NIVELACION, PLOMEO, ANDAMIOS, DESPERDICIOS, MANO DE OBRA, LIMPIEZA Y ACARREO DE MATERIALES AL SITIO DE SU UTILIZACION.","M2 ","13.8400",0,"CERO PESOS 00/100 M.N.",0,297528]
[344012,"IMPERMEABILIZACION DE CADENAS DE DESPLANTE EN MUROS, CON UNA CAPA DE EMULTEX (O SIMILAR), DOS CAPAS DE BITUMEX (O SIMILAR) Y UNA CAPA DE CRISTAFLEX (O SIMILAR).","ML ","6.7200",0,"CERO PESOS 00/100 M.N.",0,297529]
["15.05(319)","ENTREPISOS, CUBIERTA Y ACABADOS DE AZOTEA         ",null,null,null,null,{"$f":"TEXT(SUM(G52:G56), \"$ #,##0.00 ;\")","v":"$ 0.00 "}]
[216582,"SUMINISTRO Y COLOCACION DE GARGOLA DE CONCRETO PREFABRICADA TIPO NAPRESA O SIMILAR, DE 22X40 CMS. PARA DESAGUE PLUVIAL, AMACIZADA CON MORTERO CEM-ARENA DE RIO 1:4, INCLUYE: MATERIALES PARA COLOCACION, ELEVACION, NIVELACION, HERRAMIENTAS, MANO DE OBRA Y ACARREOS AL SITIO DE SU COLOCACION.","PZA","1.0000",0,"CERO PESOS 00/100 M.N.",0,297530]
[322049,"ENTORTADO DE JALCRETO F´C= 100 KG/CM2, AGREGANDO IMPERMEABILIZANTE INTEGRAL A RAZON DE 1 KG/ 50 KG DE CEMENTO DE, DE 5.0 CM DE ESPESOR PROMEDIO, PARA DAR PENDIENTES EN ENTREPISOS Y AZOTEAS, ACABADO  APALILLADO FINO EN FORMA INTEGRAL (SIN PASTA), PARA RECIBIR IMPERMEABILIZANTE,  INCLUYE: MATERIALES, NIVELACION,  ELEVACIONES, DESPERDICIOS, HERRAMIENTAS,  LIMPIEZA, MANO DE OBRA Y ACARREOS AL SITIO DE SU COLOCACION, EN CUALQUIER NIVEL.","M2 ","5.1400",0,"CERO PESOS 00/100 M.N.",0,297531]
[324232,"FORJADO DE ZAVALETA EN AZOTEA A BASE DE JALCRETO SIMPLE F´C=100 KG/CM2, DE 15 CM POR LADO, A 45°, CON ACABADO APALILLADO, INCLUYE: MATERIALES, DESPERDICIOS, HERRAMIENTAS, EQUIPO DE SEGURIDAD, LIMPIEZA, MANO DE OBRA Y ACARREO DE MATERIALES AL LUGAR DE SU UTILIZACION A CUALQUIER NIVEL.","ML ","9.2200",0,"CERO PESOS 00/100 M.N.",0,297532]
[324332,"FORJADO DE PRETIL EN AZOTEA A BASE DE TABIQUE ROJO RECOCIDO DE 7 X 14 X 28 CM. A SOGA, DE 14 CM DE ESPESOR,  ASENTADO CON MORTERO DE  CEMENTO-CAL ARENA EN PROPORCION DE 1:2:6, INCLUYE: MATERIALES, DESPERDICIOS, NIVELACION, PLOMEO,  ELEVACIONES, HERRAMIENTAS, FLETES, LIMPIEZAS, MANO DE OBRA Y ACAREOS DE MATERIALES AL SITIO DE SU UTILIZACION. A CUALQUIER NIVEL.","M2 ","4.3400",0,"CERO PESOS 00/100 M.N.",0,297533]
[344125,"IMPERMEABILIZACION DE MUROS O LOSAS, A BASE DE MEMBRANA PREFABRICADA, MCA. IMPERQUIMIA, UNIPLAS AERO PLUS SBS, ALTO DESEMPEÑO CON VENTILACION ANTIABOLSAMIENTOS, FABRICADA A BASE DE ASFALTOS MODIFICADOS CON POLIMEROS SINTETICOS SBS (ESTIRENO BUTADIENO ESTIRENO) REFORZADA CON MALLA POLIESTER DE ALTA RESISTENCIA, ACABADO APARENTE A BASE DE GRAVILLA ESMALTADA A FUEGO, 4.5 MM  DE ESPESOR TOTAL, COLOR ROJO TERRACOTA, GARANTIA POR ESCRITO DE 10 AÑOS, POR LA EMPRESA CONTRATISTA., INCLUYE: LIMPIEZA Y PREPARACION DE LA SUPERFICIE, APLICACION DE PRIMER IMPERCOAT PRIMARIO SL, PARA ANCLAJE Y TAPAPORO DE LA SUPERFICIE, SELLADO DE FISURAS Y GRIETAS A BASE DE CEMENTO PLASTICO BITUMINOSO IMPERCOAT CEMENTO SBS, SUMINISTRO Y COLOCACION DE MEMBRANA POR MEDIO DE TERMOFUSION A BASE DE FUEGO DE SOPLETE DE GAS BUTANO, HACIENDO TRASLAPES MINIMOS DE 0.10 MTS. EN AMBOS SENTIDOS, SELLADO DE ORILLAS, REMATES Y TRASLAPES, MATERIALES MENORES Y DE CONSUMO, CORTES, DESPERDICIOS, LIMPIEZA GENERAL, HERRAMIENTAS, MANO DE OBRA ESPECIALIZADA Y ACARREOS AL SITIO DE SU COLOCACION.","M2 ","5.1400",0,"CERO PESOS 00/100 M.N.",0,297534]
["15.06(355)","RECUBRIMIENTOS Y ACABADOS                         ",null,null,null,null,{"$f":"TEXT(SUM(G58:G60), \"$ #,##0.00 ;\")","v":"$ 0.00 "}]
[355022,"APLANADO DE MUROS Y/O TECHOS CON MORTERO CEMENTO-CAL-ARENA DE RIO EN PROP. 1:2:6 DE 2 CM. DE ESPESOR PROMEDIO, A PLOMO Y REGLA, ACABADO APALILLADO FINO, INCLUYE: MATERIALES, DESPERDICIOS, ANDAMIOS, HERRAMIENTAS, PLOMEO, NIVELACION, REMATES, LIMPIEZA DEL AREA DE TRABAJO Y ACARREO DE MATERIALES AL SITIO DE SU UTILIZACION. A CUALQUIER NIVEL.\n","M2 ","45.2000",0,"CERO PESOS 00/100 M.N.",0,297535]
[357322,"BOQUILLAS EN PUERTAS Y VENTANAS, CON MORTERO CEMENTO-CAL-ARENA 1:2:6, INCLUYE: ANDAMIOS Y ACARREO DE MATERIALES AL SITIO DE SU UTILIZACION.","ML ","20.8000",0,"CERO PESOS 00/100 M.N.",0,297536]
[357352,"FILETES Y BOLEADOS, HECHOS CON MORTERO CEMENTO-CAL-ARENA EN PROPORCION 1:2:6, INCLUYE: DESPERDICIOS, ANDAMIOS Y ACARREO DE MATERIALES AL SITIO DE SU UTILIZACION, A CUALQUIER NIVEL.","ML ","13.4000",0,"CERO PESOS 00/100 M.N.",0,297537]
["15.07(372)","PISOS                                             ",null,null,null,null,{"$f":"TEXT(SUM(G62:G63), \"$ #,##0.00 ;\")","v":"$ 0.00 "}]
[373026,"PISO DE CONCRETO HECHO EN OBRA F'C=200 KG/CM2, TMA 3/4\", DE 10 CMS. DE ESPESOR, ACABADO RAYADO CON BROCHA, EN FORMA INTERGRAL, SIN UTILIZACION DE PASTA, COLADO A CUADROS, CON REFUERZO DE MALLA ELECTROSOLDADA 6-6 / 10-10, INCLUYE: TRAZO, NIVELACION, AFINE Y COMPACTACION DEL TERRENO, MATERIALES, CIMBRA DE FRONTERA, DESCIMBRA, DESPERDICIOS, CURADO, VIBRADO, MUESTREADO, JUNTAS FRIAS, VOLTEADOR,  HERRAMIENTAS, MANO DE OBRA Y ACARREOS DE MATERIALES AL SITIO DE SU UTILIZACION.","M2 ","3.6700",0,"CERO PESOS 00/100 M.N.",0,297538]
[373502,"CEJA DE CONCRETO F'C=150 KG/CM2, TMA=3/4\" DE 12.0 X 18.0 CM DE SECCION PROMEDIO, ARMADA CON 1 VARILLA #3 (3/8\") Y ESTRIBOS DE 1/4\" @ 25.0 CM, EN CUALQUIER NIVEL. INCLUYE: CIMBRA APARENTE, DESCIMBRA, COLADO, VIBRADO, CURADO, PERFILADO, CHAFLANES, GOTERO, LIMPIEZA, HERRAMIENTAS, MATERIALES, DESPERDICIOS Y MANO DE OBRA.","ML ","6.3000",0,"CERO PESOS 00/100 M.N.",0,297539]
["15.08(382)","ELEMENTOS COMPLEMENTARIOS DE ALBAÑILERIA          ",null,null,null,null,{"$f":"TEXT(SUM(G65:G65), \"$ #,##0.00 ;\")","v":"$ 0.00 "}]
[382053,"BASE DE CONCRETO F'C=150 KG/CM, DE 15 CM DE ALTURA., ARMADA CON  VARILLAS DE 3/8\"@20 CM. EN AMBOS SENTIDOS, PARA COLOCACION DE EQUIPOS DE EN GENERAL,  ACABADO APALILLADO, INCLUYE: MATERIALES, COLADO, VIBRADO, CURADO, CIMBRA Y DESCIMBRA, NIVELACION,  DESPERDICIOS, REMATES,  HERRAMIENTAS, LIMPIEZA, MANO DE OBRA  Y ACARREO DE MATERIAL AL SITIO DE SU UTILIZACION, A CUALQUIER NIVEL.","M2 ","2.0000",0,"CERO PESOS 00/100 M.N.",0,297540]
["15.09(393)","PINTURA                                           ",null,null,null,null,{"$f":"TEXT(SUM(G67:G70), \"$ #,##0.00 ;\")","v":"$ 0.00 "}]
[393010,"PINTURA VINIL-ACRÍLICA A BASE DE AGUA ACABADO SEMIMATE  LAVABLE, PARA INTERIORES Y EXTERIORES QUE NO DESPRENDA VAPORES TÓXICOS NI OLORES DESAGRADABLES, CON LAS SIGUIENTES CARACTERÍSTICAS ( SÓLIDOS POR PESO 46-52%, SÓLIDOS POR VOLUMEN 30-36%, VISCOSIDAD DE 100-130 UK A 25°C, DENSIDAD > O = 1.2 TON/M3., LAVABILIDAD > O = 4,000 CICLOS, TIEMPO DE SECADO AL TACTO, 30-40 MIN., TIEMPO DE SECADO DURO < O = 8 HRS., CICLO DE CURADO DE 7 DIAS, PH 6-8, RENDIMIENTO EN SUP. LISA 8-10 M2/LT., FINEZA DE MOLIDO (HEGMAN) 3-7 UH.)  EN CADENAS DE DESPLANTE, A UNA CARA, TRABAJO TERMINADO, A DOS MANOS, INCLUYE: MATERIALES MENORES Y DE CONSUMO, PREPARACION DE LA SUPERFICIE, SELLADO DE LA SUPERFICIE, HERRAMIENTAS, LIMPIEZA, MANO DE OBRA Y  ACARREOS DE MATERIALES AL SITIO DE SU UTILIZACION.","ML ","13.4400",0,"CERO PESOS 00/100 M.N.",0,297541]
[393022,"PINTURA VINIL-ACRÍLICA A BASE DE AGUA ACABADO SEMIMATE  LAVABLE, PARA INTERIORES Y EXTERIORES QUE NO DESPRENDA VAPORES TÓXICOS NI OLORES DESAGRADABLES, CON LAS SIGUIENTES CARACTERÍSTICAS ( SÓLIDOS POR PESO 46-52%, SÓLIDOS POR VOLUMEN 30-36%, VISCOSIDAD DE 100-130 UK A 25°C, DENSIDAD > O = 1.2 TON/M3., LAVABILIDAD > O = 4,000 CICLOS, TIEMPO DE SECADO AL TACTO, 30-40 MIN., TIEMPO DE SECADO DURO < O = 8 HRS., CICLO DE CURADO DE 7 DIAS, PH 6-8, RENDIMIENTO EN SUP. LISA 8-10 M2/LT., FINEZA DE MOLIDO (HEGMAN) 3-7 UH.)  EN MUROS APLANADOS DE MEZCLA APALILLADO O PULIDO, TRABAJO TERMINADO, A DOS MANOS, INCLUYE: MATERIALES MENORES Y DE CONSUMO, ANDAMIOS, PREPARACION DE LA SUPERFICIE, SELLADO DE LA SUPERFICIE, HERRAMIENTAS, LIMPIEZA, MANO DE OBRA Y  ACARREOS DE MATERIALES AL SITIO DE SU UTILIZACIÓN.","M2 ","45.2000",0,"CERO PESOS 00/100 M.N.",0,297542]
[393052,"PINTURA VINIL-ACRÍLICA A BASE DE AGUA ACABADO SEMIMATE  LAVABLE, PARA INTERIORES Y EXTERIORES QUE NO DESPRENDA VAPORES TÓXICOS NI OLORES DESAGRADABLES, CON LAS SIGUIENTES CARACTERÍSTICAS ( SÓLIDOS POR PESO 46-52%, SÓLIDOS POR VOLUMEN 30-36%, VISCOSIDAD DE 100-130 UK A 25°C, DENSIDAD > O = 1.2 TON/M3., LAVABILIDAD > O = 4,000 CICLOS, TIEMPO DE SECADO AL TACTO, 30-40 MIN., TIEMPO DE SECADO DURO < O = 8 HRS., CICLO DE CURADO DE 7 DIAS, PH 6-8, RENDIMIENTO EN SUP. LISA 8-10 M2/LT., FINEZA DE MOLIDO (HEGMAN) 3-7 UH.)  EN LOSAS Y ELEMENTOS DE CONCRETO, TRABAJO TERMINADO, A DOS MANOS, INCLUYE: MATERIALES MENORES Y DE CONSUMO, ANDAMIOS, PREPARACION DE LA SUPERFICIE DE CONCRETO, SELLADO DE LA SUPERFICIE, HERRAMIENTAS, LIMPIEZA, MANO DE OBRA Y  EQUIPO DE SEGURIDAD. A CUALQUIER ALTURA.","M2 ","7.5200",0,"CERO PESOS 00/100 M.N.",0,297543]
[393122,"PINTURA DE ESMALTE ALQUIDALICO ANTICORROSIVO, ACABADO BRILLANTE, PARA INTERIORES Y EXTERIORES QUE NO DESPRENDA VAPORES TÓXICOS NI OLORES DESAGRADABLES, CON LAS SIGUIENTES CARACTERÍSTICAS ( SÓLIDOS POR PESO 49-60%, SÓLIDOS POR VOLUMEN 40-46%, VISCOSIDAD DE 110-160 UK A 25°C, DENSIDAD 0.9-1.2 TON/M3., BRILLO A 60°C, 90%, TIEMPO DE SECADO AL TACTO, < O = 6 HRS., TIEMPO DE SECADO DURO < O = 24 HRS., ADHERENCIA 100%, RENDIMIENTO EN SUP. LISA 8-10 M2/LT., DILUCIÓN MÁXIMA (AGUARRÁS, THINER), 15 %,  EN HERRERIA CERRADA (DUELA DE LAMINA ACANALADA), TRABAJO TERMINADO, A DOS MANOS, INCLUYE: MATERIALES MENORES Y DE CONSUMO, ANDAMIOS, PREPARACION DE LA SUPERFICIE, HERRAMIENTAS, LIMPIEZA, MANO DE OBRA Y  EQUIPO DE SEGURIDAD. A CUALQUIER NIVEL.","M2 ","9.8000",0,"CERO PESOS 00/100 M.N.",0,297544]
["15.10(396)","LIMPIEZA                                          ",null,null,null,null,{"$f":"TEXT(SUM(G72:G72), \"$ #,##0.00 ;\")","v":"$ 0.00 "}]
[396012,"LIMPIEZA DE PISOS DE CONCRETO CON AGUA Y ACIDO MURIATICO AL 10%.","M2 ","3.6700",0,"CERO PESOS 00/100 M.N.",0,297545]
["15.11(410)","CANCELERIA, HERRERIA, ALUMINIO, VIDRIOS Y CHAPAS  ",null,null,null,null,{"$f":"TEXT(SUM(G74:G76), \"$ #,##0.00 ;\")","v":"$ 0.00 "}]
[412013,"SUMINISTRO, FABRICACION Y COLOCACION DE HERRERIA TUBULAR Y/O ESTRUCTURAL, INCLUYE: SOLDADURA, ELEMENTOS DE FIJACION, MATERIALES MENORES, DESCALIBRES, DESPERDICIOS, BISAGRAS, FONDO ANTICORROSIVO, FLETES, HERRAMIENTAS, EQUIPO, MANO DE OBRA  Y ACARREO DE MATERIALES AL SITIO DE SU UTLIZACION.","KG ","115.0000",0,"CERO PESOS 00/100 M.N.",0,297546]
[424043,"SUMINISTRO Y COLOCACION DE CHAPA PHILLIPS X-720 O AS-725, INCLUYE: PERFORACIONES, ELEMENTOS DE FIJACION, HERRAMIENTAS, MANO DE OBRA Y  ACARREO DE MATERIAL AL SITIO DE SU UTILIZACION.","PZA","1.0000",0,"CERO PESOS 00/100 M.N.",0,297547]
[424082,"SUMINISTRO Y COLOCACION DE CERRADURA DE SOBREPONER DE SEGURIDAD CON UN SOLO CILINDRO DE ACCION POR AMBOS LADOS TIPO BARRA, MCA. PHILLIPS MODELO 800 FD, INCLUYE: ELEMANTOS DE FIJACION, AJUSTES PRUEBAS, HERRAMIENTAS Y MANO DE OBRA.","PZA","1.0000",0,"CERO PESOS 00/100 M.N.",0,297548]
["15.12(511)","INSTALACION ELECTRICA EN OBRA EXTERIOR            ",null,null,null,null,{"$f":"TEXT(SUM(G78:G85), \"$ #,##0.00 ;\")","v":"$ 0.00 "}]
[514034,"SALIDA ELECTRICA DE CENTRO AISLADA OCULTA, CON TUBERIA Y CONEXIONES CONDUIT DE PVC. PESADO  DE AJUSTE DE 13 Y 19 MM. DE DIAMETRO, CABLE VINANEL THW-LS 600 V. A 75° C, 90° C, MARCA CONDUCTORES MONTERREY, (VIAKON-PROTOCOLIZADO), CABLE VINANEL 21 THW-LS 600 V. A 75° C, 90° C, MARCA CONDUMEX (CONDUMEX PROTOCOLIZADO).  CALIBRE 12 EN FASES Y 12 EN TIERRA FISICA, CAJAS DE REGISTRO  CUADRADAS, CHALUPAS Y TAPAS DE  PVC REFORZADO., INCLUYE: TRAZO, RANURAS, MATERIALES MENORES, HERRAMIENTA, MANO DE OBRA ESPECIALIZADA , CONEXIONES, LIMPIEZA DEL AREA DE TRABAJO, PRUEBAS, DESPERDICIOS Y ACARREO DEL MATERIAL AL SITIO DE SU COLOCACION, EN CUALQUIER NIVEL.","SAL","1.0000",0,"CERO PESOS 00/100 M.N.",0,297549]
[518046,"SALIDA ELECTRICA PARA CONTACTO MONOFÁSICO  DUPLEX POLARIZADO, OCULTA, CON TUBERIA Y CONEXIONES CONDUIT GALVANIZADA P.G., ETIQUETA VERDE DE AJUSTE DE 13 Y 19 MM. DE DIAMETRO,  CABLE VINANEL THW-LS 600 V. A 75° C, 90° C, MARCA CONDUCTORES MONTERREY, (VIAKON-PROTOCOLIZADO), CABLE VINANEL 21 THW-LS 600 V. A 75° C, 90° C, MARCA CONDUMEX (CONDUMEX PROTOCOLIZADO)., CAL.  12  EN FASES Y CAL. 12 PARA TIERRA FISICA, CAJAS DE REGISTRO  CUADRADAS, CHALUPAS Y TAPAS DE ACERO GALVANIZADO TIPO REFORZADO, CONTACTO QUINZIÑO MX, TAPA DE ALUMINIO, INCLUYE: TRAZO, RANURAS, CONEXION A TIERRA, MATERIALES MENORES, PRUEBAS, DESPERDICIOS, LIMPIEZAS, HERRAMIENTAS, MANO DE OBRA, Y ACARREO DEL MATERIAL AL SITIO DE SU COLOCACION, A CUALQUIER NIVEL.","SAL","1.0000",0,"CERO PESOS 00/100 M.N.",0,297550]
[522034,"SALIDA ELECTRICA PARA  APAGADOR DOBLE, OCULTA, CON TUBERIA Y CONEXIONES CONDUIT DE PVC TIPO PESADO DE 13 Y 19 MM. DE DIAMETRO, CABLE VINANEL THW-LS 600 V. A 75° C, 90° C, MARCA CONDUCTORES MONTERREY, (VIAKON-PROTOCOLIZADO), CABLE VINANEL 21 THW-LS 600 V. A 75° C, 90° C, MARCA CONDUMEX (CONDUMEX PROTOCOLIZADO). CALIBRE 12, CAJAS CUADRADAS, CHALUPAS Y TAPAS DE PVC, APAGADORES QUINZIÑO, TAPA DE ALUMINIO, INCLUYE: MATERIALES MENORES, PRUEBAS, DESPERDICIOS Y ACARREO DEL MATERIAL AL SITIO DE SU COLOCACION, A CUALQUIER NIVEL.","SAL","1.0000",0,"CERO PESOS 00/100 M.N.",0,297551]
[524526,"ALIMENTACION ELECTRICA DE FUERZA PARA SISTEMA DE EQUIPO HIDRONEUMATICO, CON TUBERIA Y CONEXIONES CONDUIT GALV. P.G. ROSCADA DE  25 MM. DE DIAMETRO,  Y TUBO LIQUATITE DE 1\" DE DIAM.,  CABLE VINANEL THW-LS 600 V. A 75° C, 90° C, MARCA CONDUCTORES MONTERREY, (VIAKON-PROTOCOLIZADO), CABLE VINANEL 21 THW-LS 600 V. A 75° C, 90° C, MARCA CONDUMEX (CONDUMEX PROTOCOLIZADO). CALIBRES 10, CONDULET RECTANGULAR FSC CON TAPA Y EMPAQUE,  INCLUYE: TRAZO,  MATERIALES MENORES, CONEXIONES, CONECTORES, HERRAMIENTAS,  PRUEBAS, CORTES, AJUSTES,  DESPERDICIOS, LIMPIEZAS,  MANO DE OBRA ESPECIALIZADA,  Y ACARREO DEL MATERIAL AL SITIO DE SU COLOCACION. (LONGITUD CONSIDERADA DESDE EL TABLERO DE ALIMENTACION AL TABLERO DEL EQUIPO, DENTRO DEL CUARTO)","SAL","1.0000",0,"CERO PESOS 00/100 M.N.",0,297552]
[540305,"SUMINISTRO E INSTALACION DE CENTRO DE CARGA CAT. QO-816L-100,  DE 8 POLOS  100 AMPERES, INCLUYE: MATERIALES, ZAPATAS, MANO DE OBRA, HERRAMIENTAS, ELEMENTOS DE FIJACION, PRUEBAS,  ACARREOS Y MATERIALES MENORES.","PZA","1.0000",0,"CERO PESOS 00/100 M.N.",0,297557]
[543012,"SUMINISTRO Y COLOCACION DE INTERRUPTOR TERMOMAGNETICO DERIVADO CON 1 POLOS, DE 15-60 AMPERES, MCA. SQUARE D, CAT. QO. INCLUYE: PRUEBAS, MATERIALES MENORES, HERRAMIENTAS, MANO DE OBRA ESPECIALIZADA  Y ACARREO DE MATERIALES AL SITIO DE SU COLOCACION.","PZA","2.0000",0,"CERO PESOS 00/100 M.N.",0,297558]
[543020,"SUMINISTRO Y COLOCACION DE INTERRUPTOR TERMOMAGNETICO CON 2 POLOS, DE 15-50 AMPERES, MCA. SQUARE D, CAT. QO. INCLUYE: PRUEBAS, FLETES, MATERIALES MENORES Y ACARREO DE MATERIALES AL SITIO DE SU COLOCACION.","PZA","2.0000",0,"CERO PESOS 00/100 M.N.",0,297559]
[905629,"SUMINISTRO E INSTALACION DE LUMINARIO DE SOBREPONER MCA. HIGHLUMEN MOD. C-SBV20-S42TLC20-C, NOVALUX MOD. NOEII214.5LEDT8 MVSAPE, O SIMILAR, SISTEMA LED DE 30 WATTS. +- 8%, PARA OPERAR CON DOS TUBOS LED T8 (14-16 WATTS C/U), 4000°K, IRC>80, VIDA UTIL DE 40,000 HRS. 2350 LUMENES TOTALES COMO MINIMO, DRIVER INTEGRADO MULTIVOLTAJE 100-240 VOLTS , EN GABINETE METALICO FABRICADO EN LAMINA DE ACERO ROLADA EN FRIO CAL. 24 MINIMO, CON ACABADO EN POLVO POLIESTER EN APLICACION ELECTROSTÁTICA COLOR BLANCO, DIFUSOR ENVOLVENTE 100% ACRILICO, LA LUMINARIA (COMPLETA) DEBERA CUMPLIR CON LA NORMA ANCE, INCLUYE: ELEMENTOS DE FIJACION, CONEXION, MATERIALES MENORES Y DE CONSUMO, GARANTIAS, COPIA DE CERTIFICACION ANCE ANEXA EN ELTRAMITE DE LA ESTIMACION, HERRAMIENTAS, ANDAMIOS, MANO DE OBRA, PRUEBAS, LIMPIEZA Y ACARREOS.","PZA","1.0000",0,"CERO PESOS 00/100 M.N.",0,297563]
["15.13(565)","INSTALACION HIDRAULICA, SANITARIA Y GAS EN O. EXT.",null,null,null,null,{"$f":"TEXT(SUM(G87:G93), \"$ #,##0.00 ;\")","v":"$ 0.00 "}]
[579030,"SUCCION PARA LLENADO DE HIDRONEUMATICO A BASE DE TUBERIA DE COBRE DE 1 1/4\" A 1 1/2\" , DESDE LA CISTERNA HASTA EL EQUIPO DE BOMBEO, (DE ACUERDO A GUIAS DE INSTALACION PROPORCIONADAS POR CAPECE) CONSIDERANDO UNA DISTANCIA PROMEDIO DE 10 MTS. DESDE LA UBICACION DE LA CISTERNA AL EQUIPO HIDRONEUMATICO,  INCLUYE: TRAZO, EXCAVACIONES, RELLENOS,  ENCOFRACO CON CONCRETO F'C=100 KG/CM2, LINEAS DE SUCCION, LINEA DE RETORNO PARA PRUEBAS, PICHANCHA DE 1 1/2\", VALVULAS,  MATERIALES MENORES, DESPERDICIOS, CONEXIONES, PRUEBAS, LIMPIEZA,  Y ACARREO DE TODOS LOS MATERIALES AL SITIO DE SU UTILIZACION.","PZA","1.0000",0,"CERO PESOS 00/100 M.N.",0,297564]
[585006,"SUMINISTRO Y COLOCACION DE TUBO DE P.V.C. SANITARIO (ANGER),1 CAMPANA DE 2\" (50 MM) DIAM., INCLUYE: CONEXIONES, TRAZO, EXCAVACION, RELLENO COMPACTADO, DESPERDICIOS, PRUEBAS, PASOS EN CIMENTACION Y ACARREO DE MATERIALES AL SITIO DE SU COLOCACION.","ML ","2.5000",0,"CERO PESOS 00/100 M.N.",0,297565]
[589317,"SUMINISTRO Y TENDIDO DE TUBERIA DE CPVC-CTS, PARA CEMENTAR  DE 50 MM DE DIAM. INCLUYE: TRAZO, CONEXIONES (COPLES, CODOS, TEES, NIPLES, ETC), DESPERDICIOS, ENCOFRADO CON CONCRETO F'C=100 KG/CM2 DE 6 X 15 CMS DE SECCION, MATERIALES MENORES Y DE CONSUMO, PRUEBAS, EXCAVACION, RELLENO, HERRAMIENTAS, MANO DE OBRA Y ACARREO DE MATERIALES AL SITIO DE SU COLOCACION.","ML ","2.5000",0,"CERO PESOS 00/100 M.N.",0,297568]
[591312,"SUMINISTRO Y COLOCACION DE VALVULA DE FLOTADOR ALTA PRESION DE 19 MM  DE DIAM., CON BOLA DE COBRE DE 6\" DE DIAM. INC.: MATERIALES MENORES, PRUEBAS Y ACARREO DE MATERIALES AL SITIO DE SU COLOCACION.","PZA","1.0000",0,"CERO PESOS 00/100 M.N.",0,297570]
[591414,"SUMINISTRO Y COLOCACION DE VALVULA DE ESFERA (BOLA) EXTREMOS ROSCADOS 2\" (51 MM) DE DIAMETRO. MCA URREA, FIG. 550,  INCLUYE: MATERIALES MENORES Y DE CONSUMO, HERRAMIENTAS, PRUEBAS, LIMPIEZA, MANO DE OBRA Y ACARREOS DE MATERIALES AL SITIO DE SU COLOCACION.","PZA","1.0000",0,"CERO PESOS 00/100 M.N.",0,297571]
[592012,"SUMINISTRO Y COLOCACION DE CESPOL BOTE DE P.V.C. CON REJILLA CROMADA. INCLUYE: MATERIALES MENORES Y DE CONSUMO, HERRAMIENTAS, DESPERDICIOS, PRUEBAS, MANO DE OBRA Y ACARREO DE MATERIALES AL SITIO DE SU COLOCACION.","PZA","1.0000",0,"CERO PESOS 00/100 M.N.",0,297572]
[930842,"SUMINISTRO Y COLOCACION DE SISTEMA HIDRONEUMATICO INTEGRADO, ARMADO CON DE 2 MOTOBOMBAS CENTRIFUGAS 1 1/2\" DE SUCCION Y DESCARGA, ACOPLADAS A MOTORES ELECTRICOS DE 2 H.P. MOD. 3-200ME, 3500 R.P.M., 2 FASES, 220 VOLTS/60HERZ, UN TANQUE PRECARGADO DE 119 GALONES., PRESION DE TRABAJO 115LBS/PULG2, TABLERO DE CONTROL AUTOMATIZADO CON GABINETE DE LAMINA DE ACERO ROLADO EN FRIO, TABLERO DE CONTROL LOGICO PROGRAMABLE, PROTECCION CONTRA CORTOCIRCUITOS ICE, PROTECCION POR BAJO NIVEL DE CISTERNA (ELECTRONIVELES) LUCES DE INFORMACION DE TRABAJO ALTERNADOR CON SIMULTANEADOR PARA ALTA DEMANDA DE AGUA, AJUSTE AUTOMATICO DE ARRANQUE,  SISTEMA DE EMERGENCIA PROGRAMADO, DIAGRAMAS COMPLETOS, SISTEMA RESTRICTOR DE FLUJO POR BOMBA, CABEZAL DE DESCARGA DE 3\" BRIDADO, VALVULAS DE CIERRE RAPIDO, VALVULA CHECK PARA CEBADO, BRIDA DE CONEXIÓN PARA CADA MOTOBOMBA  Y VALVULA DE RETORNO DE 1 ¼\", PORTATABLERO METALICO AUTO SOPORTABLE CON MULTIPLES DE AJUSTES, CHASIS METALICO CON SISTEMA ANTICORROSIVO INTEGRADO, INCLUYE: CONEXIONES HIDRAULICAS Y ELECTRICAS, MATERIALES MENORES Y DE CONSUMO, ELEMENTOS DE FIJACION, CALIBRACION, PRUEBAS, PUESTA EN MARCHA, GARANTIAS POR ESCRITO POR 5 AÑOS, MANUAL DE OPERACION, FLETES, ARRASTRES,  HERRAMIENTA, LIMPIEZAS, MANO DE OBRA ESPECIALIZADA Y TRASLADOS AL SITIO DE SU INSTALACION.","PZA","1.0000",0,"CERO PESOS 00/100 M.N.",0,297576]
["02","RED ELECTRICA",null,null,null,null,{"$f":"TEXT(SUM(G95 + G103), \"$ #,##0.00 ;\")","v":"$ 0.00 "}]
["02.01(511)","INSTALACION ELECTRICA EN OBRA EXTERIOR            ",null,null,null,null,{"$f":"TEXT(SUM(G96:G102), \"$ #,##0.00 ;\")","v":"$ 0.00 "}]
[534004,"SUMINISTRO Y TENDIDO DE TUBO CONDUIT DE P.V.C. PESADO, DE 19 MM DIAM. INCLUYE: CONEXIONES, TRAZO, EXCAVACION, RELLENO, DESPERDICIOS, MATERIALES MENORES, PRUEBAS Y ACARREO AL SITIO DE SU COLOCACION.","ML ","15.0000",0,"CERO PESOS 00/100 M.N.",0,297553]
[536008,"SUMINISTRO Y COLOCACION DE CABLE VINANEL THW-LS 600 V. A 75° C, 90° C, MARCA CONDUCTORES MONTERREY, (VIAKON-PROTOCOLIZADO), CABLE VINANEL 21 THW-LS 600 V. A 75° C, 90° C, MARCA CONDUMEX (CONDUMEX PROTOCOLIZADO). CAL. 10,  INCLUYE: DESPERDICIOS, MATERIALES MENORES, HERRAMIENTA, CONEXIONES, MANO DE OBRA ESPECIALIZADA, LIMPIEZA DEL AREA DE TRABAJO, PRUEBAS Y ACARREO AL SITIO DE SU COLOCACION.","ML ","30.0000",0,"CERO PESOS 00/100 M.N.",0,297554]
[536010,"SUMINISTRO Y COLOCACION DE CABLE VINANEL THW-LS 600 V. A 75° C, 90° C, MARCA CONDUCTORES MONTERREY, (VIAKON-PROTOCOLIZADO), CABLE VINANEL 21 THW-LS 600 V. A 75° C, 90° C, MARCA CONDUMEX (CONDUMEX PROTOCOLIZADO). CAL. 8,  INCLUYE: DESPERDICIOS, MATERIALES MENORES, HERRAMIENTA, CONEXIONES, MANO DE OBRA ESPECIALIZADA, LIMPIEZA DEL AREA DE TRABAJO, PRUEBAS Y ACARREO AL SITIO DE SU COLOCACION.","ML ","15.0000",0,"CERO PESOS 00/100 M.N.",0,297555]
[536106,"SUMINISTRO Y COLOCACION DE CABLE DE COBRE DESNUDO CAL. 10, MCA. CONDUMEX, CONELEC O CONDUCTORES MONTERREY. INCLUYE: DESPERDICIOS, MATERIALES MENORES, PRUEBAS Y ACARREO AL SITIO DE SU COLOCACION.","ML ","15.0000",0,"CERO PESOS 00/100 M.N.",0,297556]
[543022,"SUMINISTRO Y COLOCACION DE INTERRUPTOR TERMOMAGNETICO DERIVADO CON 2 POLOS, DE 15-60 AMPERES, MCA. SQUARE D, CAT. QO. INCLUYE: PRUEBAS, MATERIALES MENORES, HERRAMIENTAS, MANO DE OBRA ESPECIALIZADA  Y ACARREO DE MATERIALES AL SITIO DE SU COLOCACION.","PZA","1.0000",0,"CERO PESOS 00/100 M.N.",0,297560]
[558522,"SUMINISTRO Y COLOCACION DE VARILLA DE TIERRA COOPERWELD, DE 3.00 M X 19 MM DE DIAM.  INCLUYE: UNA  CARGA CADWELD NO. 90, CONECTOR COOPER WELD, SOLDADURA CADWELD NO. 90, PARTE PROPORCIONAL DE MOLDE 161V.,  MATERIALES MENORES, PRUEBAS Y ACARREO AL SITIO DE SU COLOCACION.","PZA","1.0000",0,"CERO PESOS 00/100 M.N.",0,297561]
[880618,"SUMINISTRO Y COLOCACION DE REGISTRO ELECTRICO PARA ALUMBRADO, PREFABRICADO  DE 0.40 X 0.40 X 0.60 MTS. CON TAPA DE CONCRETO,  MARCO Y CONTRAMARCO DE FIERRO GALVANIZADO, INCLUYE: TRAZO, EXCAVACION, TAPA DE CONCRETO CON MARCO Y CONTRAMARCO DE ANGULO, RELLENO, FILTRO DE GRAVA, HERRAMIENTAS, MANO DE OBRA, FLETES, ACARREO AL SITIO DE SU COLOCACION Y LIMPIEZA DEL AREA DE TRABAJO.","PZA","1.0000",0,"CERO PESOS 00/100 M.N.",0,297562]
["02.02(565)","INSTALACION HIDRAULICA, SANITARIA Y GAS EN O. EXT.",null,null,null,null,{"$f":"TEXT(SUM(G104:G104), \"$ #,##0.00 ;\")","v":"$ 0.00 "}]
[585014,"SUMINISTRO Y COLOCACION DE TUBO DE P.V.C. SANITARIO (ANGER)  SERIE 25, CAMPANA, DE 6\" (150 MM) DIAM., INCLUYE: CONEXIONES, TRAZO, EXCAVACION,  PASOS POR CIMENTACION, CAMA DE ARENA, RELLENO COMPACTADO, DESPERDICIOS, PRUEBAS Y ACARREO DE MATERIALES AL SITIO DE SU COLOCACION.","ML ","25.0000",0,"CERO PESOS 00/100 M.N.",0,297566]
["04","RED HIDRAULICA",null,null,null,null,{"$f":"TEXT((G106), \"$ #,##0.00 ;\")","v":"$ 0.00 "}]
["04.01(565)","INSTALACION HIDRAULICA, SANITARIA Y GAS EN O. EXT.",null,null,null,null,{"$f":"TEXT(SUM(G107:G109), \"$ #,##0.00 ;\")","v":"$ 0.00 "}]
[589313,"SUMINISTRO Y TENDIDO DE TUBERÍA DE CPVC-CTS, PARA CEMENTAR  DE 19 MM DE DIAM. INCLUYE: TRAZO, CONEXIONES (COPLES, CODOS, TEES, NIPLES, ETC), DESPERDICIOS, ENCOFRADO CON CONCRETO F'C=100 KG/CM2 DE 6 X 15 CMS DE SECCION, MATERIALES MENORES Y DE CONSUMO, PRUEBAS, EXCAVACIÓN, RELLENO, HERRAMIENTAS, MANO DE OBRA Y ACARREO DE MATERIALES AL SITIO DE SU COLOCACIÓN.","ML ","25.0000",0,"CERO PESOS 00/100 M.N.",0,297567]
[591312,"SUMINISTRO Y COLOCACION DE VALVULA DE FLOTADOR ALTA PRESION DE 19 MM  DE DIAM., CON BOLA DE COBRE DE 6\" DE DIAM. INC.: MATERIALES MENORES, PRUEBAS Y ACARREO DE MATERIALES AL SITIO DE SU COLOCACION.","PZA","1.0000",0,"CERO PESOS 00/100 M.N.",0,297569]
[596002,"REGISTRO HIDRAULICO DE 0.40 X 0.40 X 0.60 M, CON MURO DE LADRILLO DE LAMA 5.5 X 11.0 X 22.0 CM, ASENTADO CON MORTERO CEMENTO-ARENA 1:3, A SOGA, APLANADO CON MORTERO CEMENTO-ARENA DE RIO 1:3,  Y PISO DE CONCRETO ACABADO PULIDO. INCLUYE: TRAZO, EXCAVACIONES, NIVELACION, RELLENO CON MATERIAL PRODUCTO DE EXCAVACION, RETIRO DE MATERIAL EXCEDENTE FUERA DE LA OBRA, TAPA DE CONCRETO F'C=200 KG/CM2, MARCO Y CONTRAMARCO DE ANGULO DE 1 1/2\" X 1/8\", MATERIALES, DESPERDICIOS, HERRAMIENTAS, MANO DE OBRA, LIMPIEZA, RETIRO DE MATERIAL PRODUCTO DE EXCAVACION FUERA DE LA OBRA Y ACARREO DE MATERIALES AL SITIO DE SU UTILIZACION.","PZA","1.0000",0,"CERO PESOS 00/100 M.N.",0,297573]
["03","RED SANITARIA",null,null,null,null,{"$f":"TEXT((G111), \"$ #,##0.00 ;\")","v":"$ 0.00 "}]
["03.01(565)","INSTALACION HIDRAULICA, SANITARIA Y GAS EN O. EXT.",null,null,null,null,{"$f":"TEXT(SUM(G112:G112), \"$ #,##0.00 ;\")","v":"$ 0.00 "}]
[596036,"REGISTRO SANITARIO DE 0.60 X 0.60 X 0.80 M, CON MURO DE LADRILLO DE LAMA DE 5.5 X 11.0 X 22.0 CM, ASENTADO CON MORTERO CEMENTO-ARENA 1:3, APLANADO CON MORTERO CEMENTO-ARENA DE RIO 1:3, INCLUYE: TRAZO, EXCAVACIONES, NIVELACION, RELLENO CON MATERIAL PRODUCTO DE EXCAVACION, RETIRO DE MATERIAL EXCEDENTE FUERA DE LA OBRA, TAPA DE CONCRETO F'C=200 KG/CM2, MARCO Y CONTRAMARCO DE ANGULO DE 1 1/2\" X 1/8\", MATERIALES, DESPERDICIOS, HERRAMIENTAS, MANO DE OBRA, LIMPIEZA, RETIRO DE MATERIAL PRODUCTO DE EXCAVACION FUERA DE LA OBRA Y ACARREO DE MATERIALES AL SITIO DE SU UTILIZACION.","PZA","2.0000",0,"CERO PESOS 00/100 M.N.",0,297574]
["05","CISTERNA",null,null,null,null,{"$f":"TEXT((G114), \"$ #,##0.00 ;\")","v":"$ 0.00 "}]
["05.01(565)","INSTALACION HIDRAULICA, SANITARIA Y GAS EN O. EXT.",null,null,null,null,{"$f":"TEXT(SUM(G115:G115), \"$ #,##0.00 ;\")","v":"$ 0.00 "}]
[597109,"SUMINISTRO Y COLOCACION  DE CISTERNA PREFABRICADA DE 10 M3 DE CAPACIDAD, FORMADA A BASE DE SUMINISTRO E INSTALACION DE 2 (DOS) CISTERNAS PREFABRICADA DE CONCRETO F`C=250 KG/CM2, ARMADA CON ACERO DE REFUERZO F`Y= 5000 KG/CM2, PARA UNA CAPACIDAD DE 5,000 LTS. APROXIMADAMENTE, INCLUYE: FLETE, GRUA, TRAZO, LIMPIEZA, EXCAVACIONES EN MATERIAL TIPO \"A\" Y/O \"B\",  NIVELACION, AFINE, CONFORMACION DEL TERRENO RESULTANTE, INTERCONEXION DE LAS 2 CISTERNAS CON TUBERIA Y CONEXIONES DE PVC CED. 40 DE 6\" DE DIAMETRO, FIRME DE CONCRETO F´C= 150 KG/CM2, ARMADO CON MALLA ELECTROSOLDADE 6 X 6-10/10 DE 10 CMS. DE ESPESOR,  BROCALES, TAPAS METALICA DE FO.FO. PARA REGISTRO, AGUA PARA LLENADO DE CISTERNA DURANTE EL RELLENO, RELLENOS A VOLTEO Y RELLENOS COMPACTADOS AL 90% DE SU PVSM., DESPERDICIOS, PRUEBAS, EQUIPO, GARANTIA POR ESCRITO DE POR LO MENOS DE 5 AÑO,  HERRAMIENTA, MANO DE OBRA Y RETIRO DE MATERIAL SOBRANTE PRODUCTO DE EXCAVACION FUERA DE LA OBRA. ","PZA","1.0000",0,"CERO PESOS 00/100 M.N.",0,297575]
[null,"RESUMEN DE PARTIDAS"]
["BAS-REH-05869","CONSTRUCCIÓN DE CASETA PARA HIDRONEUMÁTICO E INSTALACIONES DE OBRA EXTERIOR EN EL JARDÍN DE NIÑOS JOSÉ GONZÁLEZ TORRES CCT 14EJN1061C, UBICADO EN LA LOCALIDAD PASEO DE LA CAÑADA, MUNICIPIO DE TONALÁ, JALISCO.",null,null,null,null,{"$f":"G17","v":"$ 0.00 "}]
["SAN","SANITARIOS",null,null,null,null,{"$f":"G18","v":"$ 0.00 "}]
["SAN.01(396)","LIMPIEZA                                          ",null,null,null,null,{"$f":"G19","v":"$ 0.00 "}]
[15,"CUARTO DE MAQUINAS",null,null,null,null,{"$f":"G25","v":"$ 0.00 "}]
["15.01(150)","TRABAJOS PRELIMINARES                             ",null,null,null,null,{"$f":"G26","v":"$ 0.00 "}]
["15.02(160)","CIMENTACION                                       ",null,null,null,null,{"$f":"G33","v":"$ 0.00 "}]
["15.03(200)","ESTRUCTURA                                        ",null,null,null,null,{"$f":"G41","v":"$ 0.00 "}]
["15.04(310)","MUROS, CADENAS, CASTILLOS Y REPIZONES.            ",null,null,null,null,{"$f":"G45","v":"$ 0.00 "}]
["15.05(319)","ENTREPISOS, CUBIERTA Y ACABADOS DE AZOTEA         ",null,null,null,null,{"$f":"G51","v":"$ 0.00 "}]
["15.06(355)","RECUBRIMIENTOS Y ACABADOS                         ",null,null,null,null,{"$f":"G57","v":"$ 0.00 "}]
["15.07(372)","PISOS                                             ",null,null,null,null,{"$f":"G61","v":"$ 0.00 "}]
["15.08(382)","ELEMENTOS COMPLEMENTARIOS DE ALBAÑILERIA          ",null,null,null,null,{"$f":"G64","v":"$ 0.00 "}]
["15.09(393)","PINTURA                                           ",null,null,null,null,{"$f":"G66","v":"$ 0.00 "}]
["15.10(396)","LIMPIEZA                                          ",null,null,null,null,{"$f":"G71","v":"$ 0.00 "}]
["15.11(410)","CANCELERIA, HERRERIA, ALUMINIO, VIDRIOS Y CHAPAS  ",null,null,null,null,{"$f":"G73","v":"$ 0.00 "}]
["15.12(511)","INSTALACION ELECTRICA EN OBRA EXTERIOR            ",null,null,null,null,{"$f":"G77","v":"$ 0.00 "}]
["15.13(565)","INSTALACION HIDRAULICA, SANITARIA Y GAS EN O. EXT.",null,null,null,null,{"$f":"G86","v":"$ 0.00 "}]
["02","RED ELECTRICA",null,null,null,null,{"$f":"G94","v":"$ 0.00 "}]
["02.01(511)","INSTALACION ELECTRICA EN OBRA EXTERIOR            ",null,null,null,null,{"$f":"G95","v":"$ 0.00 "}]
["02.02(565)","INSTALACION HIDRAULICA, SANITARIA Y GAS EN O. EXT.",null,null,null,null,{"$f":"G103","v":"$ 0.00 "}]
["04","RED HIDRAULICA",null,null,null,null,{"$f":"G105","v":"$ 0.00 "}]
["04.01(565)","INSTALACION HIDRAULICA, SANITARIA Y GAS EN O. EXT.",null,null,null,null,{"$f":"G106","v":"$ 0.00 "}]
["03","RED SANITARIA",null,null,null,null,{"$f":"G110","v":"$ 0.00 "}]
["03.01(565)","INSTALACION HIDRAULICA, SANITARIA Y GAS EN O. EXT.",null,null,null,null,{"$f":"G111","v":"$ 0.00 "}]
["05","CISTERNA",null,null,null,null,{"$f":"G113","v":"$ 0.00 "}]
["05.01(565)","INSTALACION HIDRAULICA, SANITARIA Y GAS EN O. EXT.",null,null,null,null,{"$f":"G114","v":"$ 0.00 "}]
[]
["IMPORTE CON LETRA (IVA INCLUIDO)",null,null,null,null,"SUBTOTAL M.N.",{"$f":"TEXT(G17,  \"$ #,##0.00 ;\")","v":"$ 0.00 "}]
[{"$f":"UPPER(CONVERTIRNUM(ROUND( G17 * 1.16, 2)))","v":"CERO PESOS 00/100 M.N."},null,null,null,null,"IVA M.N.",{"$f":"TEXT(ROUND( G17 * 0.16, 2),  \"$ #,##0.00 ;\")","v":"$ 0.00 "}]
[null,null,null,null,null,"TOTAL M.N.",{"$f":"TEXT(ROUND( G17 * 1.16, 2),  \"$ #,##0.00 ;\")","v":"$ 0.00 "}]